bitfinex-derivatives/quotes_ETHF0:USTF0_20250308
["timestamp","ask_amount","ask_price","bid_price","bid_amount"]
[1741466955163,0.6355,2219.5,2219.3,73.4628]
[1741466955462,0.642,2219.4,2219.3,73.4628]
[1741466955662,1.18283,2219.4,2219.3,73.4628]
[1741466955862,0.642,2219.4,2219.3,73.4628]
[1741466957462,1.18283,2219.4,2219.3,73.4628]
[1741466957659,1.976,2220.0,2219.3,73.4628]
[1741466957862,0.54074,2219.8,2219.3,74.6862]
[1741466958166,0.54074,2219.8,2219.5,0.54079]
[1741466958569,0.54074,2219.8,2219.6,0.6226]
[1741466958771,0.54076,2219.7,2219.6,0.6226]
[1741466959069,0.54082,2219.5,2219.3,74.6862]
[1741466959265,0.54082,2219.5,2219.3,75.3184]
[1741466959569,0.54079,2219.6,2219.3,75.85925]
[1741466960167,0.54076,2219.7,2219.3,75.3184]
[1741466960366,0.54076,2219.7,2219.4,0.54083]
[1741466960665,0.54076,2219.7,2219.3,75.3184]
[1741466960865,0.54076,2219.7,2219.3,75.85924]
[1741466961569,0.54079,2219.6,2219.3,75.85924]
[1741466962169,0.54077,2219.7,2219.4,0.54083]
[1741466962471,0.54077,2219.7,2219.4,0.54082]
[1741466962671,2.22882929,2219.9,2219.3,75.3184]
[1741466962866,0.5408,2219.6,2219.3,75.3184]
[1741466963371,0.54082,2219.5,2219.3,75.3184]
[1741466963569,3.8512,2219.8,2219.3,75.3184]
[1741466963871,0.54083,2219.4,2219.3,75.3184]
[1741466964068,0.54083,2219.4,2219.3,73.4628]
[1741466964265,0.54083,2219.4,2219.3,70.255]
[1741466964565,4.54083,2219.4,2219.3,66.75444401]
[1741466965070,3.39350877,2219.4,2219.3,66.75444401]
[1741466966476,2.38283,2219.4,2219.3,66.75444401]
[1741466966866,9.74881457,2219.4,2219.3,64.07593401]
[1741466967076,9.74881457,2219.4,2219.3,63.07192401]
[1741466967470,10.04299005,2219.4,2219.3,63.07192401]
[1741466968370,9.37346485,2219.4,2219.3,63.07192401]
[1741466968768,9.37346485,2219.4,2219.3,60.77801401]
[1741466969470,9.37346485,2219.4,2219.3,58.41139401]
[1741466969672,9.37346485,2219.4,2219.3,57.34450401]
[1741466974381,12.58126485,2219.4,2219.3,57.34450401]
[1741466979885,8.58126485,2219.4,2219.3,57.34450401]
[1741466980085,10.55826485,2219.4,2219.3,57.34450401]
[1741466982490,15.94322072,2219.4,2219.3,57.34450401]
[1741466982881,15.94322072,2219.4,2219.3,56.2881479]
[1741466983487,15.94322072,2219.4,2219.3,55.74354791]
[1741466983787,15.94322072,2219.4,2219.3,54.06681221]
[1741466983987,15.94322072,2219.4,2219.3,51.5292895]
[1741466984382,15.94322072,2219.4,2219.3,51.2169895]
[1741466984588,15.94322072,2219.4,2219.3,47.9828195]
[1741466984786,15.94322072,2219.4,2219.3,47.9790395]
[1741466984991,15.94322072,2219.4,2219.3,47.9714795]
[1741466985185,15.94322072,2219.4,2219.3,47.9676995]
[1741466985483,15.94322072,2219.4,2219.3,47.6913995]
[1741466985690,15.94322072,2219.4,2219.3,39.6517995]
[1741466985884,15.94322072,2219.4,2219.3,32.2420995]
[1741466986091,15.94322072,2219.4,2219.3,31.6712995]
[1741466988993,11.94322072,2219.4,2219.3,25.04677621]
[1741466989195,15.94322072,2219.4,2219.3,25.04677621]
[1741466991797,15.94322072,2219.4,2219.3,24.42367621]
[1741466992396,15.94322072,2219.4,2219.3,24.02159544]
[1741466992598,15.94322072,2219.4,2219.3,20.27319544]
[1741466992792,15.94322072,2219.4,2219.3,12.58119544]
[1741466992993,15.94322072,2219.4,2219.3,11.52799544]
[1741466994400,15.94322072,2219.4,2219.3,6.39375571]
[1741466994595,15.27371582,2219.4,2219.3,6.39375571]
[1741466995399,18.25471582,2219.4,2219.3,6.39375571]
[1741466996512,18.25471582,2219.4,2219.3,3.79955571]
[1741466996713,16.99843485,2219.4,2219.1,0.00677002]
[1741466996912,3.2078,2219.1,2218.5,0.6267]
[1741466997206,3.2078,2218.6,2218.5,0.6267]
[1741466997510,7.1658,2218.6,2218.5,0.6267]
[1741466997712,11.1658,2218.6,2218.5,0.6267]
[1741466998310,12.17543485,2218.6,2218.5,0.6267]
[1741466998908,12.17543485,2218.6,2218.5,0.49184]
[1741466999803,12.17543485,2218.6,2218.4,1.1954]
[1741467000002,1.00963485,2218.5,2218.4,1.1954]
[1741467002115,1.00963485,2218.5,2218.4,1.8002]
[1741467002811,5.00963485,2218.5,2218.3,0.00677002]
[1741467003015,1.00963485,2218.5,2218.3,0.00677002]
[1741467003804,1.977,2218.4,2218.3,0.00677002]
[1741467004614,2.98663485,2218.4,2218.3,0.00677002]
[1741467009323,6.19443485,2218.4,2218.3,0.00677002]
[1741467010513,4.21743485,2218.4,2218.3,0.00677002]
[1741467010718,6.19443485,2218.4,2218.3,0.00677002]
[1741467023021,2.98663485,2218.4,2218.3,0.00677002]
[1741467023321,5.1848,2218.4,2218.3,0.00677002]
[1741467023626,6.19443485,2218.4,2218.3,0.00677002]
[1741467024823,4.21743485,2218.4,2218.3,0.00677002]
[1741467025218,3.2078,2218.4,2218.3,1.84447002]
[1741467033026,1.977,2218.5,2218.3,1.84447002]
[1741467033429,3.2078,2218.4,2218.3,1.84447002]
[1741467039830,3.2078,2218.4,2218.3,0.00677002]
[1741467040035,5.0838,2218.4,2218.3,0.00677002]
[1741467040736,5.98204855,2218.4,2218.3,0.00677002]
[1741467041823,11.96304855,2218.4,2217.0,3.2078]
[1741467042030,11.96304855,2218.4,2217.4,0.5937]
[1741467042031,3.2078,2217.5,2217.4,0.5937]
[1741467042434,3.2078,2217.5,2217.1,0.6201]
[1741467042634,3.2078,2217.2,2216.7,1.2138]
[1741467042833,5.1848,2217.2,2216.7,1.2138]
[1741467043035,5.19157002,2217.2,2216.7,1.22057002]
[1741467053038,5.19157002,2217.2,2216.7,1.76205002]
[1741467053539,5.19157002,2217.2,2216.7,1.22057002]
[1741467053940,5.19157002,2217.2,2216.7,0.60047002]
[1741467054743,5.19157002,2217.2,2216.7,1.14195002]
[1741467055047,5.19157002,2217.2,2216.8,0.6178]
[1741467061153,0.6156,2217.1,2216.8,0.6178]
[1741467062648,0.6139,2217.0,2216.7,0.60047002]
[1741467070249,3.2078,2216.8,2216.7,0.00677002]
[1741467070557,5.1848,2216.8,2216.7,0.00677002]
[1741467071056,5.8304,2216.8,2216.7,0.00677002]
[1741467071757,5.1848,2216.8,2216.7,0.00677002]
[1741467081567,3.2078,2216.8,2216.7,0.00677002]
[1741467081764,0.00677002,2217.2,2216.7,0.00677002]
[1741467081960,1.98377002,2217.2,2216.8,0.54145]
[1741467082469,1.98377002,2217.2,2216.9,0.5961]
[1741467082767,1.98377002,2217.2,2217.0,1.2526]
[1741467083860,1.98377002,2217.2,2216.7,0.00677002]
[1741467084059,3.2078,2216.8,2216.7,0.00677002]
[1741467084260,5.1848,2216.8,2216.7,0.00677002]
[1741467084668,6.08323848,2216.8,2216.7,0.00677002]
[1741467085366,6.68313848,2216.8,2216.7,0.00677002]
[1741467086070,7.43420163,2216.8,2216.7,0.00677002]
[1741467087171,11.43420163,2216.8,2216.1,1.2107]
[1741467087369,3.2078,2216.5,2216.1,1.2107]
[1741467087570,1.977,2216.4,2216.1,1.2107]
[1741467093069,1.977,2216.4,2216.1,1.75233]
[1741467093365,1.977,2216.4,2216.3,1.1601]
[1741467101077,5.1848,2216.5,2216.3,1.1601]
[1741467101279,1.977,2216.6,2216.4,1.14875]
[1741467101481,1.977,2216.6,2216.5,0.6124]
[1741467101983,1.977,2216.6,2216.5,1.15394]
[1741467103182,1.977,2216.6,2216.5,0.6124]
[1741467111289,1.977,2216.6,2216.3,1.1601]
[1741467111493,3.2078,2216.4,2216.3,1.1601]
[1741467111987,1.2284,2216.5,2216.3,1.1601]
[1741467112294,3.2078,2216.4,2216.3,1.1601]
[1741467124002,3.2078,2216.4,2216.3,1.7466]
[1741467124801,1.976,2216.6,2216.3,1.7466]
[1741467125003,1.976,2216.6,2216.4,1.219]
[1741467125795,0.89848155,2216.7,2216.4,1.219]
[1741467126503,3.2078,2216.8,2216.6,0.54151]
[1741467126698,3.2078,2216.8,2216.7,0.6359]
[1741467127296,1.976,2217.0,2216.7,1.17739]
[1741467127496,1.976,2217.0,2216.8,1.2027]
[1741467127700,2.87445578,2217.1,2216.8,1.2027]
[1741467127903,2.87445578,2217.1,2216.8,1.74415]
[1741467128200,2.87445578,2217.1,2216.9,0.54142]
[1741467128503,3.21457002,2217.2,2216.9,0.54142]
[1741467128705,3.21457002,2217.2,2217.0,0.6359]
[1741467129099,3.21457002,2217.2,2217.0,1.17731]
[1741467129899,3.21457002,2217.2,2217.0,0.6359]
[1741467130100,0.00677002,2217.2,2217.0,0.6359]
[1741467130300,0.00677002,2217.2,2217.0,1.17731]
[1741467131604,3.21457002,2217.2,2217.0,0.6359]
[1741467134708,3.21457002,2217.2,2217.0,1.17732]
[1741467134909,3.21457002,2217.2,2217.0,0.6359]
[1741467135202,0.00677002,2217.2,2217.0,1.1773]
[1741467136098,0.00677002,2217.2,2217.1,0.54139]
[1741467137611,1.98277002,2217.2,2216.8,0.5966]
[1741467137804,3.2078,2217.0,2216.0,3.21457002]
[1741467138110,3.2078,2216.7,2216.1,1.72823]
[1741467138309,3.7992,2216.6,2216.2,0.54161]
[1741467138711,3.7992,2216.6,2216.1,1.8163]
[1741467139208,3.7992,2216.6,2216.1,0.5924]
[1741467142408,1.976,2216.5,2216.1,1.13402]
[1741467142609,1.976,2216.5,2216.2,0.6193]
[1741467143706,1.976,2216.5,2216.3,0.6406]
[1741467144213,1.2181,2216.6,2216.3,0.6406]
[1741467144411,3.1941,2216.6,2216.3,0.6406]
[1741467145209,2.5902,2216.6,2216.3,1.18219]
[1741467146208,2.5902,2216.6,2216.3,0.6406]
[1741467146410,1.976,2216.6,2216.3,1.18219]
[1741467146605,1.976,2216.6,2216.5,0.6438]
[1741467148916,1.976,2216.6,2216.3,0.6406]
[1741467152015,1.976,2216.6,2216.1,0.6]
[1741467152215,0.5877,2216.5,2216.1,0.6]
[1741467154521,1.976,2216.6,2216.1,1.14163]
[1741467156122,1.976,2216.6,2216.2,0.54161]
[1741467156520,1.976,2216.6,2216.3,1.1937]
[1741467159527,1.976,2216.6,2216.5,0.613]
[1741467165226,1.976,2216.6,2216.0,0.00677002]
[1741467165427,0.598,2216.5,2216.1,1.8011]
[1741467166335,1.976,2216.6,2216.1,1.8011]
[1741467166534,2.87378675,2216.6,2216.1,1.8011]
[1741467167338,3.62592299,2216.6,2216.1,1.8011]
[1741467167832,1.64992299,2216.6,2216.1,1.8011]
[1741467168034,1.64992299,2216.6,2216.5,0.6082]
[1741467168236,3.62592299,2216.6,2216.5,1.8156]
[1741467170430,3.62592299,2216.6,2216.0,0.00677002]
[1741467170730,3.62592299,2216.6,2216.1,2.37263]
[1741467171131,3.62592299,2216.6,2216.1,1.831]
[1741467172034,3.62592299,2216.6,2216.1,2.37263]
[1741467173231,3.62592299,2216.6,2216.5,0.6077]
[1741467175938,3.62592299,2216.6,2216.1,1.74514]
[1741467176138,3.62592299,2216.6,2216.2,0.6402]
[1741467180844,3.62592299,2216.6,2216.5,0.5943]
[1741467181038,3.62592299,2216.6,2216.5,1.7883]
[1741467184865,3.62592299,2216.6,2216.0,0.00677002]
[1741467185159,3.62592299,2216.6,2216.4,0.94741]
[1741467185160,5.60692299,2216.6,2216.4,0.94741]
[1741467185367,1.36993624,2216.5,2216.4,0.94741]
[1741467185769,2.26772299,2216.5,2216.4,0.94741]
[1741467186562,6.26772299,2216.5,2216.0,0.00677002]
[1741467186760,3.2078,2216.1,2216.0,0.00677002]
[1741467186962,5.1828,2216.1,2216.0,0.00677002]
[1741467187163,5.93493624,2216.1,2216.0,0.00677002]
[1741467187358,6.83272299,2216.1,2216.0,0.00677002]
[1741467188367,6.08058675,2216.1,2216.0,0.00677002]
[1741467190874,5.1828,2216.1,2216.0,0.00677002]
[1741467191270,3.2078,2216.1,2216.0,0.00677002]
[1741467191474,5.1828,2216.1,2216.0,0.00677002]
[1741467192568,6.83155783,2216.1,2216.0,0.00677002]
[1741467193270,6.08075885,2216.1,2216.0,0.00677002]
[1741467196868,5.1828,2216.1,2216.0,0.00677002]
[1741467198580,3.2078,2216.1,2216.0,0.00677002]
[1741467204083,3.2078,2216.1,2216.0,1.23847002]
[1741467204285,3.2078,2216.1,2216.0,1.88317002]
[1741467205882,3.2078,2216.1,2216.0,2.42483002]
[1741467206889,3.4205,2216.8,2216.2,0.5416]
[1741467207181,3.4205,2216.8,2216.1,0.54163]
[1741467207182,1.975,2216.7,2216.1,0.54163]
[1741467207382,2.72596553,2216.7,2216.1,0.54163]
[1741467207577,0.75096553,2216.7,2216.1,0.54163]
[1741467207774,1.975,2216.6,2216.1,0.54161]
[1741467207975,1.975,2216.6,2216.2,0.54161]
[1741467208585,1.975,2216.6,2216.0,1.23847002]
[1741467208886,1.975,2216.6,2216.1,0.54163]
[1741467210280,1.975,2216.6,2216.2,0.5871]
[1741467210585,5.1828,2216.6,2216.2,0.5871]
[1741467213485,5.1828,2216.6,2216.2,1.12871]
[1741467213687,5.1828,2216.6,2216.2,0.5871]
[1741467214186,5.1828,2216.6,2216.2,1.12871]
[1741467215687,5.1828,2216.6,2216.2,0.5871]
[1741467215883,5.1828,2216.6,2216.2,1.12871]
[1741467217090,5.1828,2216.6,2216.3,0.54157]
[1741467217391,5.1828,2216.6,2216.4,1.2795]
[1741467219188,5.1828,2216.6,2216.2,0.5871]
[1741467219382,0.6352,2216.5,2216.2,0.5871]
[1741467220989,5.1828,2216.6,2216.2,0.5871]
[1741467221691,0.5864,2216.5,2216.2,0.5871]
[1741467221896,0.5864,2216.5,2216.2,1.12871]
[1741467222288,0.5864,2216.5,2216.2,0.5871]
[1741467230691,0.5864,2216.5,2216.2,1.12871]
[1741467230892,0.5864,2216.5,2216.2,0.5871]
[1741467235599,1.48525937,2216.5,2216.2,0.5871]
[1741467235799,2.76635937,2216.5,2216.2,0.5871]
[1741467238702,5.97415937,2216.5,2216.2,0.5871]
[1741467238901,5.0753,2216.5,2216.2,0.5871]
[1741467239300,4.4385,2216.5,2216.2,0.5871]
[1741467239501,4.4385,2216.5,2216.2,1.12871]
[1741467239701,4.4385,2216.5,2216.2,0.5871]
[1741467243114,0.5864,2216.5,2216.2,0.5871]
[1741467243315,1.975,2216.6,2216.2,1.12871]
[1741467243510,0.6419,2216.7,2216.2,1.12871]
[1741467243713,3.51527364,2216.7,2216.2,1.1287]
[1741467243917,3.51527364,2216.7,2216.3,0.54158]
[1741467245117,2.6159,2216.7,2216.3,0.54158]
[1741467245508,0.6419,2216.7,2216.4,0.54156]
[1741467245713,0.6419,2216.7,2216.6,0.54151]
[1741467245714,1.973,2216.7,2216.6,0.54151]
[1741467245913,3.8215,2217.1,2216.5,1.2354]
[1741467246117,5.7945,2217.1,2216.7,0.54148]
[1741467246313,0.89881912,2217.0,2216.6,0.635]
[1741467246621,5.7945,2217.1,2216.6,1.1765]
[1741467247823,5.7945,2217.1,2216.6,0.635]
[1741467249015,5.7945,2217.1,2216.6,1.17652]
[1741467249220,5.7945,2217.1,2216.6,0.635]
[1741467249417,5.7945,2217.1,2216.6,1.17651]
[1741467250127,5.7945,2217.1,2216.6,0.635]
[1741467250326,5.7945,2217.1,2216.6,1.1765]
[1741467250530,5.7945,2217.1,2216.7,0.54149]
[1741467250926,5.7945,2217.1,2216.6,0.635]
[1741467251317,5.7945,2217.1,2216.7,0.54147]
[1741467251931,3.8215,2217.1,2216.8,0.54147]
[1741467252226,3.8215,2217.1,2216.9,1.80974]
[1741467252426,3.8215,2217.1,2216.9,1.2683]
[1741467252814,0.6137,2217.1,2216.9,1.2683]
[1741467254033,0.6137,2217.1,2216.9,1.8685]
[1741467256826,20.40077002,2217.2,2216.9,1.8685]
[1741467257018,20.99167002,2217.2,2216.9,1.8685]
[1741467257225,20.99167002,2217.2,2216.9,2.40992]
[1741467257424,2.57067002,2217.2,2216.9,1.8685]
[1741467257624,2.57067002,2217.2,2217.0,0.54142]
[1741467258020,1.97977002,2217.2,2216.9,1.8685]
[1741467258220,1.97977002,2217.2,2217.0,0.5414]
[1741467258626,0.00677002,2217.2,2216.9,1.8685]
[1741467259025,0.00677002,2217.2,2217.1,0.54139]
[1741467259627,0.00677002,2217.2,2217.0,0.5414]
[1741467259828,0.00677002,2217.2,2217.1,0.54139]
[1741467260123,0.00677002,2217.2,2216.9,1.8685]
[1741467260330,0.00677002,2217.2,2217.0,0.54141]
[1741467260627,0.00677002,2217.2,2217.0,0.54142]
[1741467261131,0.00677002,2217.2,2216.9,1.8685]
[1741467261431,0.00677002,2217.2,2217.1,0.54139]
[1741467268726,0.00677002,2217.2,2217.0,3.74921]
[1741467269533,0.00677002,2217.2,2217.0,3.2078]
[1741467270233,0.00677002,2217.2,2216.9,2.40992]
[1741467271637,0.00677002,2217.2,2216.9,1.8685]
[1741467272037,0.00677002,2217.2,2217.0,0.54141]
[1741467272836,0.00677002,2217.2,2216.9,1.8685]
[1741467272837,0.00677002,2217.2,2216.9,2.40993]
[1741467273035,0.00677002,2217.2,2217.0,0.54142]
[1741467273627,0.00677002,2217.2,2216.9,1.8685]
[1741467274034,0.00677002,2217.2,2216.9,2.40994]
[1741467274237,0.00677002,2217.2,2216.9,1.8685]
[1741467276728,0.00677002,2217.2,2216.9,1.2683]
[1741467277841,0.00677002,2217.2,2216.7,0.54148]
[1741467278043,0.00677002,2217.2,2216.7,1.75728]
[1741467278340,0.00677002,2217.2,2216.7,1.2158]
[1741467278542,0.00677002,2217.2,2216.8,1.16996]
[1741467278945,0.00677002,2217.2,2216.9,0.54144]
[1741467279241,1.97877002,2217.2,2216.8,1.16996]
[1741467279834,1.97877002,2217.2,2216.9,0.54144]
[1741467280045,1.97877002,2217.2,2216.8,0.6285]
[1741467280544,1.97877002,2217.2,2217.0,0.5414]
[1741467280744,1.97877002,2217.2,2217.1,1.2109]
[1741467280948,1.97877002,2217.2,2217.1,1.8394]
[1741467281445,0.00677002,2217.2,2217.1,2.38079]
[1741467290451,0.00677002,2217.2,2217.1,1.8394]
[1741467292955,0.00677002,2217.2,2217.1,2.38079]
[1741467294459,0.00677002,2217.2,2217.1,1.8394]
[1741467294647,9.18557002,2217.2,2216.3,6.1928]
[1741467294853,2.7078,2216.9,2216.3,3.2078]
[1741467295053,3.1817,2216.8,2216.3,3.2078]
[1741467295353,3.2078,2216.6,2216.1,2.39993]
[1741467295553,3.2078,2216.6,2216.1,2.39994]
[1741467295853,3.2078,2216.6,2216.0,0.00677002]
[1741467296153,4.10646812,2216.6,2216.0,0.54843002]
[1741467296955,3.2078,2216.6,2216.0,0.54843002]
[1741467298556,3.2078,2216.6,2216.0,0.00677002]
[1741467298757,3.2078,2216.6,2216.1,0.54162]
[1741467299758,3.2078,2216.6,2216.0,0.00677002]
[1741467299959,3.2078,2216.6,2216.1,0.54162]
[1741467301360,3.2078,2216.6,2216.0,0.00677002]
[1741467301361,3.2078,2216.6,2216.0,0.54842002]
[1741467301856,3.2078,2216.6,2216.1,0.54163]
[1741467302057,3.2078,2216.6,2216.0,0.54842002]
[1741467302255,3.2078,2216.6,2216.2,0.54161]
[1741467302459,3.2078,2216.6,2216.3,0.54159]
[1741467302660,1.971,2216.7,2216.4,0.54156]
[1741467302858,1.971,2216.7,2216.5,1.2105]
[1741467306361,2.6119,2216.7,2216.5,1.2105]
[1741467306660,2.6119,2216.7,2216.5,0.6103]
[1741467311359,2.6119,2216.7,2216.1,3.2078]
[1741467311565,0.612,2216.6,2216.2,0.5416]
[1741467311863,2.6119,2216.7,2216.3,0.54158]
[1741467312058,2.6119,2216.7,2216.4,1.2626]
[1741467312658,2.6119,2216.7,2216.5,0.54153]
[1741467312859,2.6119,2216.7,2216.5,1.17313]
[1741467313156,1.971,2216.7,2216.5,1.17313]
[1741467313765,1.971,2216.7,2216.5,0.6316]
[1741467314368,1.971,2216.7,2216.5,1.17313]
[1741467314558,1.971,2216.7,2216.5,0.6316]
[1741467316165,1.971,2216.7,2216.5,1.17313]
[1741467317068,1.971,2216.7,2216.6,0.54152]
[1741467317367,1.971,2216.7,2216.5,1.17313]
[1741467317768,1.971,2216.7,2216.6,0.54152]
[1741467318963,4.4388,2217.0,2216.5,0.6316]
[1741467319170,6.4098,2217.0,2216.7,0.54149]
[1741467319461,1.971,2217.0,2216.5,0.6316]
[1741467319668,1.2483,2217.1,2216.5,0.6316]
[1741467319870,3.2193,2217.1,2216.8,0.54146]
[1741467320268,3.2193,2217.1,2216.7,0.54148]
[1741467320461,3.2193,2217.1,2216.8,0.6483]
[1741467320662,3.2193,2217.1,2216.8,1.82066]
[1741467321368,3.2193,2217.1,2216.8,1.2792]
[1741467323766,3.2193,2217.1,2216.5,1.17312]
[1741467323963,0.6151,2217.0,2216.5,1.80432]
[1741467324168,0.6151,2217.0,2216.5,1.2628]
[1741467324564,0.6151,2217.0,2216.5,1.80433]
[1741467324764,1.51174461,2217.0,2216.5,1.80433]
[1741467327177,4.71954461,2217.0,2216.5,1.80433]
[1741467327477,3.8229,2217.0,2216.6,0.5415]
[1741467328765,3.8229,2217.0,2216.5,1.80433]
[1741467329177,3.8229,2217.0,2216.6,0.5415]
[1741467330077,0.6151,2217.0,2216.6,0.5415]
[1741467330478,1.51308173,2217.0,2216.6,0.5415]
[1741467331070,1.51308173,2217.0,2216.5,1.2628]
[1741467331381,0.00677002,2217.2,2216.6,3.2078]
[1741467331582,0.00677002,2217.2,2216.8,0.54146]
[1741467331775,0.00677002,2217.2,2216.9,1.2496]
[1741467332079,0.00677002,2217.2,2216.9,1.8353]
[1741467333474,3.21457002,2217.2,2216.9,1.8353]
[1741467333871,0.6427,2217.1,2216.9,1.8353]
[1741467334287,0.6427,2217.1,2216.6,3.2078]
[1741467334573,0.6427,2217.1,2216.8,0.54146]
[1741467334778,3.21457002,2217.2,2216.9,1.17153]
[1741467334779,0.00677002,2217.2,2216.9,1.17153]
[1741467335073,0.00677002,2217.2,2216.9,0.6301]
[1741467335277,0.00677002,2217.2,2216.9,1.78954]
[1741467335478,0.00677002,2217.2,2216.9,1.2481]
[1741467335874,0.00677002,2217.2,2216.9,1.8595]
[1741467336985,3.21457002,2217.2,2216.9,1.8595]
[1741467338885,3.21457002,2217.2,2216.7,0.54148]
[1741467339181,4.11200294,2217.2,2216.7,2.36438]
[1741467339678,4.11200294,2217.2,2216.7,1.8229]
[1741467339980,4.11200294,2217.2,2216.7,0.609]
[1741467340982,0.7504661,2217.1,2216.7,0.609]
[1741467341181,0.5851,2217.0,2216.7,0.609]
[1741467341383,0.5862,2216.9,2216.7,0.609]
[1741467342086,2.5562,2216.9,2216.7,0.609]
[1741467343480,3.21457002,2217.2,2216.8,0.54146]
[1741467343786,1.97,2217.1,2216.9,0.6313]
[1741467343983,2.5825,2217.1,2216.9,0.6313]
[1741467344383,3.48026906,2217.1,2216.9,0.6313]
[1741467350898,3.48026906,2217.1,2216.7,0.609]
[1741467350899,4.23122916,2217.1,2216.7,0.609]
[1741467351091,3.2078,2216.9,2216.7,0.609]
[1741467351694,4.10556906,2216.9,2216.7,0.609]
[1741467352897,0.75073527,2216.8,2216.3,3.2078]
[1741467353100,3.2078,2216.6,2216.3,3.2078]
[1741467353293,1.2011,2216.5,2216.3,3.2078]
[1741467353497,1.8415,2216.5,2216.3,3.2078]
[1741467354391,1.2468,2216.5,2216.3,3.2078]
[1741467354592,3.2078,2216.6,2216.4,0.6124]
[1741467354895,3.2078,2216.6,2216.5,0.6325]
[1741467355798,3.8384,2216.6,2216.5,0.6325]
[1741467358100,3.2078,2216.6,2216.5,0.6325]
[1741467358293,1.97,2216.7,2216.5,0.6325]
[1741467358496,1.97,2216.7,2216.5,1.2265]
[1741467359504,1.97,2216.7,2216.4,0.6124]
[1741467359797,1.2297,2216.6,2216.4,0.6124]
[1741467361898,2.86668593,2216.7,2216.4,0.6124]
[1741467362204,2.86668593,2216.7,2216.5,0.6186]
[1741467362601,1.97,2216.7,2216.5,0.6186]
[1741467366407,3.2078,2216.8,2216.5,0.6186]
[1741467366606,1.97,2216.7,2216.5,0.6186]
[1741467367608,1.97,2216.7,2216.4,0.6124]
[1741467367813,0.6162,2216.6,2216.4,0.6124]
[1741467369914,1.97,2216.7,2216.4,0.6124]
[1741467370109,3.2078,2216.8,2216.4,0.6124]
[1741467370412,5.1778,2216.8,2216.4,1.15396]
[1741467372016,5.1778,2216.8,2216.4,0.6124]
[1741467378619,3.2078,2216.5,2216.0,0.00677002]
[1741467378820,3.2078,2216.2,2216.0,0.00677002]
[1741467379022,1.97,2216.1,2216.0,0.00677002]
[1741467379221,3.61911603,2216.1,2216.0,0.00677002]
[1741467379424,7.61911603,2216.1,2215.3,0.6075]
[1741467379617,3.2078,2215.6,2215.3,0.6075]
[1741467382215,3.7946,2215.6,2215.3,0.6075]
[1741467382618,4.398,2215.6,2215.3,0.6075]
[1741467383030,4.398,2215.6,2215.2,0.00677002]
[1741467387523,0.00677002,2215.7,2215.2,0.00677002]
[1741467387717,1.97,2215.6,2215.4,0.54181]
[1741467387922,1.97,2215.6,2215.5,0.6392]
[1741467388118,1.97,2215.6,2215.5,1.2661]
[1741467389322,1.97,2215.6,2215.3,3.2078]
[1741467389634,3.1808,2215.6,2215.3,3.2078]
[1741467390529,3.1808,2215.6,2215.3,3.74962]
[1741467390723,0.00677002,2215.7,2215.3,3.2078]
[1741467391033,1.97677002,2215.7,2215.4,0.6423]
[1741467391333,1.97677002,2215.7,2215.5,0.54178]
[1741467391534,1.97677002,2215.7,2215.6,0.6468]
[1741467392327,1.97677002,2215.7,2215.4,0.5418]
[1741467392627,1.97677002,2215.7,2215.5,0.6468]
[1741467395538,1.97677002,2215.7,2215.6,0.54176]
[1741467395934,1.97677002,2215.7,2215.5,0.6468]
[1741467396938,1.97677002,2215.7,2215.5,1.18859]
[1741467397533,1.97677002,2215.7,2215.5,0.6468]
[1741467397839,1.97677002,2215.7,2215.6,0.54176]
[1741467398443,0.00677002,2215.7,2215.6,0.54176]
[1741467398738,0.00677002,2215.7,2215.6,3.74956]
[1741467402643,1.2565,2216.4,2215.6,10.73456]
[1741467402942,3.2078,2216.5,2215.9,3.2078]
[1741467403134,3.2078,2216.5,2216.0,1.841]
[1741467403335,3.2078,2216.5,2216.2,0.54159]
[1741467403534,3.2078,2216.5,2216.3,0.54158]
[1741467406536,3.2078,2216.5,2216.4,1.2337]
[1741467408441,1.97677002,2216.6,2216.4,1.2337]
[1741467408642,1.97677002,2216.6,2216.0,3.8131]
[1741467408848,1.97677002,2216.6,2216.0,5.55565]
[1741467410546,1.97677002,2216.6,2216.1,0.54164]
[1741467410742,1.97677002,2216.6,2216.1,0.54162]
[1741467410947,1.97677002,2216.6,2216.0,5.014]
[1741467411246,1.97677002,2216.6,2216.1,0.54163]
[1741467412046,1.97677002,2216.6,2216.0,5.014]
[1741467412250,3.2078,2216.4,2216.0,3.2078]
[1741467412447,1.2083,2216.3,2216.0,3.2078]
[1741467412645,1.8122,2216.3,2216.0,3.2078]
[1741467414047,1.198,2216.3,2216.0,3.2078]
[1741467414253,1.198,2216.3,2216.0,3.74944]
[1741467416753,1.198,2216.3,2216.1,0.54163]
[1741467416949,0.5941,2216.3,2216.1,1.79703]
[1741467418353,0.5941,2216.3,2216.1,1.2554]
[1741467418649,0.5941,2216.3,2216.1,1.79703]
[1741467418947,0.5941,2216.3,2216.1,1.2554]
[1741467419352,0.5941,2216.3,2215.9,3.2078]
[1741467420042,3.2078,2216.2,2215.7,1.2307]
[1741467420443,0.5936,2216.1,2215.7,1.2307]
[1741467420852,1.969,2216.0,2215.7,0.6217]
[1741467421054,3.7956,2215.9,2215.2,0.54862002]
[1741467421244,4.4306,2215.9,2215.2,0.00677002]
[1741467421445,4.4306,2215.9,2215.2,0.54862002]
[1741467423050,4.4306,2215.9,2215.2,0.00677002]
[1741467423453,4.4306,2215.9,2215.2,0.54862002]
[1741467424253,4.4306,2215.9,2215.2,0.00677002]
[1741467424454,4.4306,2215.9,2215.3,0.54182]
[1741467424646,4.4306,2215.9,2215.2,0.00677002]
[1741467424842,4.4306,2215.9,2215.2,0.54862002]
[1741467425254,4.4306,2215.9,2215.3,0.54182]
[1741467425455,4.4306,2215.9,2215.2,0.54861002]